[Event "GCT Superbet Blitz Poland 2025"]
[Site "Warsaw"]
[Date "2025.04.30"]
[Round "13"]
[White "Vachier-Lagrave, Maxime"]
[Black "Praggnanandhaa R"]
[Result "1-0"]
[ECO "B01"]
[WhiteElo "2722"]
[BlackElo "2758"]
[Annotator "ChessBase"]
[PlyCount "147"]
[EventDate "2025.??.??"]
[EventType "blitz"]
[TimeControl "300+2"]

1. e4 {[%emt 0:00:01]} d5 {[%emt 0:00:05]} 2. exd5 {[%emt 0:00:01]} Qxd5 {[%emt 0:00:01]} 3. Nc3 {[%emt 0:00:04]} Qa5 {[%emt 0:00:01]} 4. d4 {[%emt 0:00:02]} Bf5 {[%emt 0:00:02]} 5. Bc4 {[%emt 0:00:08]} e6 {[%emt 0:00:02]} 6. Nge2 {[%emt 0:00:09]} Nf6 {[%emt 0:00:18]} 7. O-O {[%emt 0:00:15]} c6 {[%emt 0:00:01]} 8. Bf4 {[%emt 0:00:02]} Nbd7 {[%emt 0:00:15]} 9. Re1 $146 {[%emt 0:00:06]} ({RR} 9. a3 Be7 10. Ng3 Bg6 11. f3 O-O 12. Nge4 Bxe4 13. fxe4 Qh5 14. Be2 Qg6 15. e5 Ne4 16. Nxe4 Qxe4 17. Bd3 Qxd4+ 18. Kh1 g6 19. Bh6 Rfe8 20. Bxg6 {1-0 (20) Haubro,M-Kristensen,S Copenhagen 2007}) 9... Be7 {[%emt 0:00:30]} 10. Ng3 {[%emt 0:00:09]} Bg6 {[%emt 0:00:01]} 11. Bd3 {[%emt 0:00:01]} Bxd3 {[%emt 0:00:14]} 12. Qxd3 {[%emt 0:00:01]} O-O {[%emt 0:00:01]} 13. a3 {[%emt 0:00:37]} Rfe8 {[%emt 0:00:10]} 14. Rad1 {[%emt 0:00:06]} Rad8 {[%emt 0:00:05]} 15. Nce4 {[%emt 0:00:09]} Nxe4 {[%emt 0:00:07]} 16. Nxe4 {[%emt 0:00:01]} Nf6 {[%emt 0:00:02]} 17. Nd2 {[%emt 0:00:18]} c5 {[%emt 0:00:18]} 18. Be5 {[%emt 0:00:21]} Ng4 {[%emt 0:01:30]} 19. Qe2 {[%emt 0:00:01]} Nxe5 {[%emt 0:00:10]} 20. dxe5 {[%emt 0:00:01]} Qa4 {[%emt 0:00:09]} 21. Nc4 {[%emt 0:00:17]} Qc6 {[%emt 0:00:16]} 22. Na5 {[%emt 0:00:02]} Qc7 {[%emt 0:00:14]} 23. Nc4 {[%emt 0:00:08]} b5 {[%emt 0:00:09]} 24. Nd6 {[%emt 0:00:14]} Bxd6 {[%emt 0:00:03]} 25. exd6 {[%emt 0:00:18]} Rxd6 {[%emt 0:00:01]} 26. Qxb5 {[%emt 0:00:01]} Rb8 {[%emt 0:00:03]} 27. Qa4 {[%emt 0:00:13]} g6 {[%emt 0:00:17]} 28. b3 {[%emt 0:00:10]} Rbd8 {[%emt 0:00:01]} 29. Rxd6 Rxd6 {[%emt 0:00:01]} 30. g3 {[%emt 0:00:07]} Rd4 {[%emt 0:00:08]} 31. Qb5 {[%emt 0:00:05]} c4 {[%emt 0:00:04]} 32. Qb4 {[%emt 0:00:23]} Qb6 {[%emt 0:00:15]} 33. Qc3 {[%emt 0:00:02]} cxb3 {[%emt 0:00:02]} 34. cxb3 {[%emt 0:00:01]} h5 {[%emt 0:00:03]} 35. h4 {[%emt 0:00:02]} a5 {[%emt 0:00:06]} 36. Rb1 {[%emt 0:00:10]} Rd5 {[%emt 0:00:08]} 37. b4 {[%emt 0:00:03]} axb4 {[%emt 0:00:06]} 38. axb4 {[%emt 0:00:05]} Qb5 {[%emt 0:00:11]} 39. Ra1 {[%emt 0:00:07]} e5 {[%emt 0:00:03]} 40. Kg2 {[%emt 0:00:29]} Qd7 {[%emt 0:00:05]} 41. Ra5 {[%emt 0:00:06]} Kh7 {[%emt 0:00:02]} 42. Rxd5 {[%emt 0:00:13]} Qxd5+ {[%emt 0:00:01]} 43. Kh2 {[%emt 0:00:04]} Kg7 44. Qe3 {[%emt 0:00:15]} Qb5 {[%emt 0:00:04]} 45. Qd2 {[%emt 0:00:02]} Kf6 {[%emt 0:00:02]} 46. Qd6+ {[%emt 0:00:01]} Kf5 {[%emt 0:00:02]} 47. Kg2 {[%emt 0:00:03]} Qb7+ {[%emt 0:00:02]} 48. f3 {[%emt 0:00:06]} Qb5 {[%emt 0:00:02]} 49. Kf2 {[%emt 0:00:01]} Qc4 {[%emt 0:00:02]} 50. Qd7+ {[%emt 0:00:09]} Kf6 {[%emt 0:00:01]} 51. Qd6+ {[%emt 0:00:01]} Kf5 {[%emt 0:00:01]} 52. Ke3 {[%emt 0:00:01]} Qc1+ {[%emt 0:00:03]} 53. Ke2 {[%emt 0:00:04]} Qb2+ {[%emt 0:00:05]} 54. Qd2 {[%emt 0:00:01]} Qa1 {[%emt 0:00:01]} 55. b5 {[%emt 0:00:05]} Qg1 {[%emt 0:00:02]} 56. Qd3+ {[%emt 0:00:02]} Ke6 {[%emt 0:00:01]} 57. Qc4+ {[%emt 0:00:01]} Kf6 {[%emt 0:00:02]} 58. Qc6+ Kg7 59. b6 {[%emt 0:00:02]} Qxg3 {[%emt 0:00:05]} 60. b7 {[%emt 0:00:01]} e4 {[%emt 0:00:01]} 61. Qxe4 {[%emt 0:00:02]} Qc7 {[%emt 0:00:02]} 62. Kd3 {[%emt 0:00:02]} g5 {[%emt 0:00:03]} 63. hxg5 {[%emt 0:00:01]} h4 64. Qd4+ {[%emt 0:00:05]} Kg8 {[%emt 0:00:02]} 65. Qb4 {[%emt 0:00:03]} Qb8 {[%emt 0:00:01]} 66. Qe7 {[%emt 0:00:02]} h3 {[%emt 0:00:05]} 67. g6 {[%emt 0:00:04]} fxg6 {[%emt 0:00:03]} 68. Qd7 {[%emt 0:00:01]} h2 {[%emt 0:00:02]} 69. Qc8+ {[%emt 0:00:00]} Kh7 {[%emt 0:00:02]} 70. Qxb8 {[%emt 0:00:02]} h1=Q {[%emt 0:00:02]} 71. Qc7+ {[%emt 0:00:01]} Kh6 {[%emt 0:00:00]} 72. Qf4+ {[%emt 0:00:01]} Kg7 {[%emt 0:00:01]} 73. b8=Q {[%emt 0:00:01]} Qd1+ {[%emt 0:00:01]} 74. Kc3 {[%emt 0:00:01]} 1-0

[Event "GCT Superbet Blitz Poland 2025"]
[Site "Warsaw"]
[Date "2025.04.30"]
[Round "14"]
[White "Praggnanandhaa R"]
[Black "Fedoseev, Vladimir"]
[Result "0-1"]
[ECO "A06"]
[WhiteElo "2758"]
[BlackElo "2739"]
[Annotator "ChessBase"]
[PlyCount "53"]
[EventDate "2025.??.??"]
[EventType "blitz"]
[TimeControl "300+2"]

1. b3 {[%emt 0:00:01]} d5 {[%emt 0:00:03]} 2. Bb2 {[%emt 0:00:01]} c5 {[%emt 0:00:01]} 3. e3 {[%emt 0:00:00]} Nf6 {[%emt 0:00:01]} 4. Nf3 {[%emt 0:00:14]} g6 {[%emt 0:00:01]} 5. Bb5+ {[%emt 0:00:02]} Bd7 {[%emt 0:00:01]} 6. Be2 {[%emt 0:00:01]} ({RR} 6. Bxf6 exf6 7. Bxd7+ Qxd7 8. c3 Nc6 9. d4 cxd4 10. cxd4 Bb4+ 11. Nfd2 Rc8 12. O-O O-O 13. a3 Bd6 14. Nc3 Ne7 15. Ne2 Rc6 16. b4 Rfc8 17. Rc1 Rxc1 18. Nxc1 Qc7 19. g3 Qc2 20. Ncb3 Qd3 {Carlsen,M (2831)-Keymer,V (2733) Oslo NOR 2024 1-0 (65)}) ({RR} 6. Bxf6 exf6 7. Bxd7+ Qxd7 8. d4 Nc6 9. O-O cxd4 10. Nxd4 f5 11. Nc3 Bg7 12. Nce2 O-O 13. Qd2 Rfd8 14. Rad1 Nxd4 15. Nxd4 Rac8 16. Qe2 Qc7 17. g3 Bxd4 18. Rxd4 Qxc2 19. Rd2 Qe4 20. Rfd1 Rc5 {Makarian,R (2547)-Samunenkov,I (2541) chess.com INT 2025 ½-½ (73)}) 6... Bg7 {[%emt 0:00:03]} 7. c4 {[%emt 0:00:02]} dxc4 $146 {[%emt 0:00:04]} ({RR} 7... O-O 8. O-O e6 9. Nc3 Nc6 10. Rc1 d4 11. exd4 cxd4 12. Nb5 e5 13. d3 Nh5 14. g3 Bh3 15. Re1 a6 16. Na3 f5 17. c5 f4 18. Nh4 fxg3 19. hxg3 Nf4 20. Bf3 Nb4 21. Be4 Nxa2 22. Rc4 {Melian,J (1950)-Nguyen,D (2294) Chess.com INT 2020 0-1}) ({RR} 7... O-O 8. O-O e6 9. Nc3 Nc6 10. Rc1 d4 11. exd4 cxd4 12. Nb5 e5 13. d3 Nh5 14. g3 Bh3 15. Re1 a6 16. Na3 f5 17. c5 f4 18. Nh4 fxg3 19. hxg3 Nf4 20. Bf3 Nb4 21. Be4 Nxa2 22. Rc4 {Melian,J (1950)-Nguyen,D (2294) Chess.com INT 2020 0-1}) ({RR} 7... O-O 8. cxd5 Nxd5 9. Bxg7 Kxg7 10. O-O Nc6 11. Nc3 Nxc3 12. dxc3 Bf5 13. Qc1 Qc7 14. Nh4 Be6 15. Nf3 Rfd8 16. Rd1 f6 17. h3 b6 18. Bb5 Ne5 19. Be2 Bd5 20. Qc2 Nxf3+ 21. Bxf3 Bxf3 22. gxf3 {Alvarado,C (2044)-Bukreev,S (2384) chess.com INT 2024 0-1 (48)}) 8. bxc4 {[%emt 0:00:01]} O-O {[%emt 0:00:03]} 9. O-O {[%emt 0:00:02]} Nc6 {[%emt 0:00:01]} 10. d3 {[%emt 0:00:03]} a6 {[%emt 0:00:33]} 11. Nc3 {[%emt 0:00:02]} Bg4 {[%emt 0:00:02]} 12. h3 {[%emt 0:00:13]} Bf5 {[%emt 0:00:01]} 13. Nd5 {[%emt 0:00:48]} Nxd5 {[%emt 0:00:07]} 14. cxd5 {[%emt 0:00:19]} Bxb2 {[%emt 0:00:04]} 15. Rb1 {[%emt 0:00:01]} Qxd5 {[%emt 0:00:46]} 16. Rxb2 {[%emt 0:00:02]} Qd7 {[%emt 0:00:03]} 17. Qc2 {[%emt 0:00:14]} Qd6 {[%emt 0:01:46]} 18. Rc1 {[%emt 0:00:49]} Rfc8 {[%emt 0:00:02]} 19. e4 {[%emt 0:01:16]} Be6 {[%emt 0:00:01]} 20. Rxb7 {[%emt 0:00:08]} Nb4 {[%emt 0:00:11]} 21. Qd2 {[%emt 0:00:01]} Nxa2 {[%emt 0:00:21]} 22. Qh6 {[%emt 0:00:53]} Bd5 {[%emt 0:01:05]} 23. Ng5 {[%emt 0:00:24]} Qf6 {[%emt 0:00:02]} 24. Qxh7+ {[%emt 0:00:08]} Kf8 {[%emt 0:00:01]} 25. exd5 {[%emt 0:00:04]} Nxc1 {[%emt 0:00:01]} 26. Bg4 {[%emt 0:00:01]} Rcb8 {[%emt 0:00:11]} 27. Be6 {[%emt 0:00:04]} 0-1

[Event "GCT Superbet Blitz Poland 2025"]
[Site "Warsaw"]
[Date "2025.04.30"]
[Round "14"]
[White "Aravindh, Chithambaram VR."]
[Black "Aronian, Levon"]
[Result "0-1"]
[ECO "A05"]
[WhiteElo "2749"]
[BlackElo "2747"]
[Annotator "ChessBase"]
[PlyCount "80"]
[EventDate "2025.??.??"]
[EventType "blitz"]
[TimeControl "300+2"]

1. Nf3 {[%emt 0:00:04]} Nf6 {[%emt 0:00:01]} 2. b3 {[%emt 0:00:03]} b6 {[%emt 0:00:07]} 3. g3 {[%emt 0:00:02]} g6 {[%emt 0:00:02]} 4. Bg2 {[%emt 0:00:02]} Bb7 {[%emt 0:00:02]} 5. Bb2 {[%emt 0:00:02]} Bg7 {[%emt 0:00:01]} 6. O-O {[%emt 0:00:02]} O-O {[%emt 0:00:02]} 7. d4 {[%emt 0:00:04]} c5 {[%emt 0:00:18]} ({RR} 7... d5 8. Nbd2 Nbd7 9. Ne5 Ne4 10. Nxe4 Nxe5 11. dxe5 dxe4 12. c4 c5 13. Qc2 e6 14. Rad1 Qc7 15. Bxe4 Rfd8 16. Bxb7 Qxb7 17. Rd2 Rxd2 18. Qxd2 Qe4 19. f3 Qf5 20. e4 Qh5 21. f4 Qh3) 8. e3 {[%emt 0:00:18]} ({RR} 8. dxc5 bxc5 9. c4 d6 10. Nc3 Nbd7 11. Qc2 Rb8 12. Rad1 Ne4 13. Nxe4 Bxe4 14. Qxe4 Bxb2 15. Ne1 Bg7 16. Qc2 Ne5 17. Nd3 Nxd3 18. Rxd3 a5 19. h4 a4 20. h5 Qd7 21. Bd5 Qf5) 8... cxd4 {[%emt 0:00:10]} ({RR} 8... Na6 9. c4 d5 10. Ne5 e6 11. Nc3 Qe7 12. dxc5 bxc5 13. Qe2 Rfd8 14. Rfd1 Rac8 15. Rac1 Nb4 16. a3 Nc6 17. Nxc6 Bxc6 18. cxd5 exd5 19. Na2 d4 20. Bxc6 Rxc6 21. Bxd4 Rcd6 22. Bxf6 Rxd1+ 23. Rxd1) ({RR} 8... Qc7 9. Na3 d6 10. c4 a6 11. Rc1 e6 12. Nc2 Nbd7 13. Qe2 Rfd8 14. Rfd1 Be4 15. Nd2 Bxg2 16. Kxg2 Qb7+ 17. Qf3 Qxf3+ 18. Nxf3 Ne8 19. e4 b5) 9. exd4 {[%emt 0:00:02]} d5 {[%emt 0:00:06]} 10. Re1 {[%emt 0:00:03]} Nc6 {[%emt 0:00:06]} 11. Nbd2 {[%emt 0:00:07]} Rc8 $146 {[%emt 0:00:01]} ({RR} 11... e6 12. a4 Re8 13. Ne5 Rc8 14. Ndf3 a5 15. Nxc6 Rxc6 16. Bf1 Rc8 17. Bc1 Ne4 18. Bf4 g5 19. Be3 f5 20. Ne5 Rf8 21. f3 f4 22. Bc1 Qc7 23. Ba3 fxg3 24. fxe4 gxh2+ 25. Kh1 Rf2 26. Qg4 {Gukesh,D (2764)-Praggnanandhaa,R (2747) Warsaw POL 2024 1-0 (41)}) ({RR} 11... e6 12. a4 Re8 13. Ne5 Rc8 14. Ndf3 a5 15. Nxc6 Rxc6 16. Bf1 Rc8 17. Bc1 Ne4 18. Bf4 g5 19. Be3 f5 20. Ne5 Rf8 21. f3 f4 22. Bc1 Qc7 23. Ba3 fxg3 24. fxe4 gxh2+ 25. Kh1 Rf2 26. Qg4 {Gukesh D (2649)-Praggnanandhaa R (2704) Warsaw, Poland 2024 1-0 (41)}) ({RR} 11... e6 12. a4 Re8 13. Ne5 Rc8 14. Ndf3 a5 15. Nxc6 Rxc6 16. Bf1 Rc8 17. Bc1 Ne4 18. Bf4 g5 19. Be3 f5 20. Ne5 Rf8 21. f3 f4 22. Bc1 Qc7 23. Ba3 fxg3 24. fxe4 gxh2+ 25. Kh1 Rf2 26. Qg4 {Gukesh,D (2764)-Praggnanandhaa,R (2747) Warsaw POL 2024 1-0 (41)}) 12. a3 {[%emt 0:00:08]} e6 {[%emt 0:00:04]} 13. Rc1 {[%emt 0:00:31]} Ne7 {[%emt 0:00:11]} 14. Ne5 {[%emt 0:00:03]} Nf5 {[%emt 0:00:02]} 15. c4 {[%emt 0:00:05]} Nd7 {[%emt 0:00:36]} 16. cxd5 {[%emt 0:00:20]} Rxc1 {[%emt 0:00:14]} 17. Qxc1 {[%emt 0:00:01]} Nxe5 {[%emt 0:00:02]} 18. dxe5 {[%emt 0:00:04]} Bxd5 {[%emt 0:00:01]} 19. Ne4 {[%emt 0:00:28]} Bxb3 {[%emt 0:00:09]} 20. Nf6+ {[%emt 0:00:02]} Kh8 {[%emt 0:00:02]} 21. g4 {[%emt 0:00:28]} Nh4 {[%emt 0:00:04]} 22. Be4 {[%emt 0:00:08]} h6 {[%emt 0:00:15]} 23. Re3 {[%emt 0:00:23]} Qd1+ {[%emt 0:00:16]} 24. Qxd1 {[%emt 0:00:05]} Bxd1 {[%emt 0:00:01]} 25. f3 {[%emt 0:01:17]} Rc8 {[%emt 0:00:08]} 26. Kf2 {[%emt 0:00:20]} Bc2 {[%emt 0:00:08]} 27. Re2 {[%emt 0:00:20]} Bxe4 {[%emt 0:00:08]} 28. Nxe4 {[%emt 0:00:02]} g5 {[%emt 0:00:20]} 29. Nd6 {[%emt 0:00:02]} Rc7 {[%emt 0:00:01]} 30. Ne8 {[%emt 0:00:06]} Rc5 {[%emt 0:00:16]} 31. Nf6 {[%emt 0:00:17]} Ng6 {[%emt 0:00:27]} 32. Rd2 {[%emt 0:00:01]} Bxf6 {[%emt 0:00:23]} 33. exf6 {[%emt 0:00:01]} Nf4 {[%emt 0:00:01]} 34. Ke3 {[%emt 0:00:06]} Nd5+ {[%emt 0:00:05]} 35. Ke4 {[%emt 0:00:02]} Kh7 {[%emt 0:00:03]} 36. Re2 {[%emt 0:00:02]} Kg6 {[%emt 0:00:03]} 37. h4 {[%emt 0:00:01]} Nc3+ {[%emt 0:00:15]} 38. Bxc3 {[%emt 0:00:02]} Rxc3 {[%emt 0:00:01]} 39. hxg5 {[%emt 0:00:02]} hxg5 {[%emt 0:00:01]} 40. Rd2 {[%emt 0:00:03]} Kxf6 {[%emt 0:00:06]} 0-1

[Event "GCT Superbet Blitz Poland 2025"]
[Site "Warsaw"]
[Date "2025.04.30"]
[Round "14"]
[White "Topalov, Veselin"]
[Black "Duda, Jan-Krzysztof"]
[Result "1-0"]
[ECO "C65"]
[WhiteElo "2717"]
[BlackElo "2739"]
[Annotator "ChessBase"]
[PlyCount "75"]
[EventDate "2025.??.??"]
[EventType "blitz"]
[TimeControl "300+2"]

1. e4 {[%emt 0:00:02]} e5 {[%emt 0:00:01]} 2. Nf3 {[%emt 0:00:01]} Nc6 {[%emt 0:00:01]} 3. Bb5 {[%emt 0:00:01]} Nf6 {[%emt 0:00:01]} 4. d3 {[%emt 0:00:04]} Bc5 {[%emt 0:00:03]} 5. Nbd2 {[%emt 0:00:04]} d6 {[%emt 0:00:06]} 6. O-O {[%emt 0:00:03]} O-O {[%emt 0:00:02]} 7. c3 {[%emt 0:00:01]} Bb6 {[%emt 0:00:17]} 8. Nc4 {[%emt 0:00:14]} Ne7 {[%emt 0:00:03]} 9. a4 $146 {[%emt 0:00:30]} ({RR} 9. Bg5 Ng6 10. Nh4 h6 11. Nxg6 fxg6 12. Nxb6 axb6 13. Bc4+ Kh7 14. Bd2 Nh5 15. d4 Qe7 16. dxe5 dxe5 17. Bb3 Nf4 18. Bxf4 exf4 19. f3 Ra5 20. Qd4 Rh5 21. Qf2 Rg5 22. Kh1 Re5 23. Rad1 g5 {Wang,Z (2492)-Ni,H (2667) Hefei 2010 ½-½ (57)}) ({RR} 9. Nxb6 axb6 10. Ba4 Ng6 11. h3 Nh5 12. Bg5 f6 13. Be3 Nhf4 14. Bb3+ Kh8 15. Bxf4 Nxf4 16. Nh4 f5 17. Nxf5 Qg5 18. Qg4 Qf6 19. Qh4 Qxh4 20. Nxh4 Nxd3 21. Nf3 Rf6 22. Rad1 Nxb2 23. Rd2 Na4 {Anand,V (2817)-Carlsen,M (2823) Moscow 2011 ½-½}) ({RR} 9. Ba4 Ng6 10. h3 Be6 11. Nxb6 axb6 12. Bc2 c5 13. a3 d5 14. exd5 Bxd5 15. Be3 Re8 16. b4 Qc7 17. Nd2 Rad8 18. c4 Bc6 19. b5 Bd7 20. Bg5 h6 21. Bxf6 gxf6 22. Ne4 Kg7 23. Ng3 f5 {Subelj,J (2498)-Lazavik,D (2578) Tashkent UZB 2024 ½-½ (47)}) ({RR} 9. Ba4 Ng6 10. Bc2 Re8 11. h3 c6 12. Nxb6 axb6 13. Re1 h6 14. d4 b5 15. a4 bxa4 16. Rxa4 Rxa4 17. Bxa4 exd4 18. Qxd4 c5 19. Qd3 Bd7 20. Bb3 Qb6 21. Bc2 Qc7 22. Re3 Bc6 23. Qe2 Ra8 {Polgar,J (2707)-Avrukh,B (2645) Biel 2007 ½-½ (35)}) 9... c6 {[%emt 0:00:42]} 10. Nxb6 {[%emt 0:00:01]} axb6 {[%emt 0:00:02]} 11. Bc4 {[%emt 0:00:01]} Ng6 {[%emt 0:00:02]} 12. Be3 {[%emt 0:00:04]} d5 {[%emt 0:00:24]} 13. exd5 {[%emt 0:00:05]} cxd5 {[%emt 0:00:01]} 14. Bb3 {[%emt 0:00:01]} h6 {[%emt 0:00:20]} 15. h3 {[%emt 0:00:02]} Re8 {[%emt 0:00:01]} 16. Re1 {[%emt 0:00:27]} Qd6 {[%emt 0:00:20]} 17. d4 {[%emt 0:00:32]} e4 {[%emt 0:00:02]} 18. Ne5 {[%emt 0:00:01]} Be6 {[%emt 0:00:25]} 19. f4 {[%emt 0:00:06]} exf3 {[%emt 0:00:14]} 20. Qxf3 {[%emt 0:00:01]} Ne4 {[%emt 0:00:12]} 21. Bc2 {[%emt 0:00:18]} Nxe5 {[%emt 0:00:14]} 22. dxe5 {[%emt 0:00:01]} Qxe5 {[%emt 0:00:04]} 23. Bxb6 {[%emt 0:00:01]} Bd7 {[%emt 0:00:28]} 24. Bd4 {[%emt 0:00:03]} Qe6 {[%emt 0:00:02]} 25. b4 {[%emt 0:00:11]} Qg6 {[%emt 0:00:02]} 26. b5 {[%emt 0:00:12]} Ng5 {[%emt 0:00:27]} 27. Qxd5 {[%emt 0:01:06]} Nxh3+ {[%emt 0:00:10]} 28. Kh2 {[%emt 0:00:01]} Qxc2 {[%emt 0:00:08]} 29. Qxd7 {[%emt 0:00:03]} Rxe1 {[%emt 0:00:04]} 30. Rxe1 {[%emt 0:00:02]} Nf4 {[%emt 0:00:34]} 31. Qxb7 {[%emt 0:00:02]} Rxa4 {[%emt 0:00:04]} 32. b6 {[%emt 0:00:11]} Ra2 {[%emt 0:00:14]} 33. Re8+ {[%emt 0:00:40]} Kh7 {[%emt 0:00:01]} 34. Qe4+ {[%emt 0:00:01]} Qxe4 {[%emt 0:00:11]} 35. Rxe4 {[%emt 0:00:02]} Nd5 {[%emt 0:00:02]} 36. c4 {[%emt 0:00:07]} Nb4 {[%emt 0:00:06]} 37. b7 {[%emt 0:00:20]} Nc6 {[%emt 0:00:02]} 38. Re8 {[%emt 0:00:01]} 1-0

[Event "GCT Superbet Blitz Poland 2025"]
[Site "Warsaw"]
[Date "2025.04.30"]
[Round "14"]
[White "Deac, Bogdan-Daniel"]
[Black "Firouzja, Alireza"]
[Result "1-0"]
[ECO "A33"]
[WhiteElo "2668"]
[BlackElo "2757"]
[Annotator "ChessBase"]
[PlyCount "47"]
[EventDate "2025.??.??"]
[EventType "blitz"]
[TimeControl "300+2"]

1. d4 {[%emt 0:00:02]} e6 {[%emt 0:00:01]} 2. Nf3 {[%emt 0:00:02]} c5 {[%emt 0:00:00]} 3. c4 {[%emt 0:00:05]} cxd4 {[%emt 0:00:03]} 4. Nxd4 {[%emt 0:00:01]} Nf6 {[%emt 0:00:01]} 5. Nc3 {[%emt 0:00:01]} Nc6 {[%emt 0:00:01]} 6. Bf4 {[%emt 0:00:02]} d6 {[%emt 0:00:10]} 7. Nxc6 {[%emt 0:00:02]} bxc6 {[%emt 0:00:01]} 8. g3 {[%emt 0:00:02]} ({RR} 8. e4 e5 9. Bd2 Be7 10. Be2 O-O 11. O-O a5 12. Qc2 Be6 13. Rfd1 Qc7 14. Na4 Nd7 15. Be3 Rab8 16. Bf3 h6 17. h3 Rfd8 18. b3 Nf8 19. Rd2 Ng6 20. Rad1 Nh4 21. Bg4 Rf8 22. Bxe6 fxe6 {Krivonosov,O (2344)-Laurusas,T (2587) Lithuania LTU 2024 0-1 (58)}) 8... Be7 {[%emt 0:00:09]} 9. Bg2 {[%emt 0:00:07]} d5 {[%emt 0:00:03]} 10. cxd5 $146 {[%emt 0:00:01]} ({RR} 10. Qa4 Bd7 11. O-O O-O 12. Qc2 Qa5 13. Rfd1 Rfc8 14. Rac1 Be8 15. Qd2 Qa6 16. e4 dxc4 17. Qe2 Nd7 18. Bd6 Bxd6 19. Rxd6 Ne5 20. Rcd1 Rab8 21. R6d2 Qa5 22. Bf1 Nd3 23. Rc2 c5 24. Rb1 Rd8 {Lalith,B (2565)-Ortiz Suarez,I (2603) Tromsoe 2014 0-1 (48)}) ({RR} 10. O-O O-O 11. Qa4 Qb6 12. Rac1 Qxb2 13. Qxc6 Bd7 14. Qa6 Rac8 15. Be5 Qb6 16. Qxb6 axb6 17. cxd5 exd5 18. Bxf6 Bxf6 19. Nxd5 Bd8 20. Rxc8 Bxc8 21. Rb1 Be6 22. a4 Bxd5 23. Bxd5 Bc7 24. Rc1 Bd6 {Gustafsson,J (2645)-Edouard,R (2641) chess24.com INT 2020 0-1 (56)}) ({RR} 10. O-O O-O 11. Qc2 Ba6 12. b3 Bd6 13. Bc1 Rc8 14. Rd1 Qe7 15. Bb2 Rfd8 16. Rab1 Be5 17. Re1 Nd7 18. Na4 Bd6 19. Red1 Bb4 20. Qc1 Nf6 21. Qf4 Bd6 22. Qh4 e5 23. e3 Rb8 24. Bf1 Bc8 {Lalith,B (2553)-Gulamali,K (2379) Caleta 2016 1-0 (40)}) 10... cxd5 {[%emt 0:00:20]} 11. e4 {[%emt 0:00:05]} O-O {[%emt 0:00:37]} 12. exd5 {[%emt 0:00:02]} Nxd5 {[%emt 0:00:43]} 13. O-O {[%emt 0:01:16]} Nxc3 {[%emt 0:00:41]} 14. bxc3 {[%emt 0:00:31]} Ba6 {[%emt 0:00:01]} 15. Re1 {[%emt 0:00:30]} Qa5 {[%emt 0:00:43]} 16. Re5 {[%emt 0:00:18]} Qxc3 {[%emt 0:00:17]} 17. Bxa8 {[%emt 0:00:03]} Rxa8 {[%emt 0:00:03]} 18. Rc1 {[%emt 0:00:02]} Qa3 {[%emt 0:00:06]} 19. Qb3 {[%emt 0:00:24]} h6 {[%emt 0:00:25]} 20. Qxa3 {[%emt 0:00:29]} Bxa3 {[%emt 0:00:01]} 21. Rb1 {[%emt 0:00:05]} Bc4 {[%emt 0:00:05]} 22. Ra5 {[%emt 0:00:22]} Bf8 {[%emt 0:00:06]} 23. Ra4 {[%emt 0:00:36]} Bd3 {[%emt 0:00:01]} 24. Rb8 {[%emt 0:00:06]} 1-0

[Event "GCT Superbet Blitz Poland 2025"]
[Site "Warsaw"]
[Date "2025.04.30"]
[Round "14"]
[White "Gavrilescu, David"]
[Black "Vachier-Lagrave, Maxime"]
[Result "0-1"]
[ECO "B30"]
[WhiteElo "2554"]
[BlackElo "2722"]
[Annotator "ChessBase"]
[PlyCount "110"]
[EventDate "2025.??.??"]
[EventType "blitz"]
[TimeControl "300+2"]

1. e4 {[%emt 0:00:02]} c5 {[%emt 0:00:01]} 2. Nf3 {[%emt 0:00:02]} Nc6 {[%emt 0:00:01]} 3. Bb5 {[%emt 0:00:02]} e6 {[%emt 0:00:01]} 4. c3 {[%emt 0:00:01]} Nge7 {[%emt 0:00:16]} 5. d4 {[%emt 0:00:01]} cxd4 {[%emt 0:00:01]} 6. cxd4 {[%emt 0:00:02]} d5 {[%emt 0:00:01]} 7. e5 {[%emt 0:00:01]} Bd7 {[%emt 0:00:06]} 8. Nc3 {[%emt 0:00:01]} Nf5 {[%emt 0:00:03]} 9. O-O {[%emt 0:00:04]} Be7 {[%emt 0:00:05]} 10. Bd3 {[%emt 0:00:28]} Nh4 {[%emt 0:00:31]} 11. Nxh4 {[%emt 0:00:09]} Bxh4 {[%emt 0:00:01]} 12. Qg4 {[%emt 0:00:10]} Kf8 {[%emt 0:00:04]} 13. Be3 {[%emt 0:00:13]} h5 {[%emt 0:00:01]} 14. Qf3 $146 {[%emt 0:00:39]} ({RR} 14. Qe2 g6 15. Qd2 Rc8 16. Rfc1 Kg7 17. Ne2 Be7 18. a3 a5 19. Rc2 Qb6 20. Rac1 a4 21. Bg5 Qd8 22. h4 Bxg5 23. hxg5 Qe7 24. Qf4 Ra8 25. Nc3 h4 26. Nb5 Rh5 27. Qf6+ Qxf6 28. gxf6+ Kf8 {Xiong,J (2636)-Vachier Lagrave,M (2725) chess.com INT 2025 1-0 (59)}) 14... Kg8 {[%emt 0:00:04]} 15. Nb5 {[%emt 0:00:29]} Be7 {[%emt 0:00:02]} 16. Qg3 {[%emt 0:00:06]} Nb4 {[%emt 0:00:21]} 17. Be2 {[%emt 0:00:03]} Bxb5 {[%emt 0:00:07]} 18. Bxb5 {[%emt 0:00:02]} Qb6 {[%emt 0:00:02]} 19. Ba4 {[%emt 0:00:16]} g6 {[%emt 0:00:15]} 20. Rac1 {[%emt 0:00:14]} Nxa2 {[%emt 0:00:11]} 21. Rcd1 {[%emt 0:00:14]} Nb4 {[%emt 0:00:03]} 22. Bg5 {[%emt 0:00:09]} Bxg5 {[%emt 0:00:12]} 23. Qxg5 {[%emt 0:00:01]} Qd8 {[%emt 0:00:01]} 24. Qg3 {[%emt 0:00:42]} Kg7 {[%emt 0:00:21]} 25. f4 {[%emt 0:00:07]} h4 {[%emt 0:00:09]} 26. Qg4 {[%emt 0:00:13]} Rh5 {[%emt 0:00:01]} 27. Rd2 {[%emt 0:00:08]} Rc8 {[%emt 0:00:04]} 28. Qh3 {[%emt 0:00:17]} Qb6 {[%emt 0:00:12]} 29. Bd1 {[%emt 0:00:15]} Rhh8 {[%emt 0:00:01]} 30. Qe3 {[%emt 0:00:14]} Nc6 {[%emt 0:00:10]} 31. Kh1 {[%emt 0:00:06]} Ne7 {[%emt 0:00:01]} 32. Bc2 {[%emt 0:00:01]} Rc4 {[%emt 0:00:13]} 33. b3 {[%emt 0:00:02]} Rc7 {[%emt 0:00:04]} 34. Rdf2 {[%emt 0:00:05]} Rhc8 {[%emt 0:00:09]} 35. f5 {[%emt 0:00:23]} exf5 {[%emt 0:00:07]} 36. Bb1 {[%emt 0:00:03]} Rh8 {[%emt 0:00:12]} 37. Re1 {[%emt 0:00:08]} Qe6 {[%emt 0:00:22]} 38. Ref1 {[%emt 0:00:01]} Rh5 {[%emt 0:00:06]} 39. h3 {[%emt 0:00:01]} Qc8 {[%emt 0:00:05]} 40. Bd3 {[%emt 0:00:03]} a6 {[%emt 0:00:05]} 41. Be2 {[%emt 0:00:01]} Rh8 {[%emt 0:00:03]} 42. Qg5 {[%emt 0:00:03]} Qe6 {[%emt 0:00:01]} 43. Bd3 {[%emt 0:00:02]} Rh5 {[%emt 0:00:08]} 44. Qd2 {[%emt 0:00:01]} Nc6 {[%emt 0:00:16]} 45. Be2 {[%emt 0:00:02]} Rh8 {[%emt 0:00:01]} 46. b4 {[%emt 0:00:02]} Qe7 {[%emt 0:00:02]} 47. b5 {[%emt 0:00:02]} axb5 {[%emt 0:00:01]} 48. Bxb5 {[%emt 0:00:01]} Nd8 {[%emt 0:00:03]} 49. Ba4 {[%emt 0:00:04]} Ne6 {[%emt 0:00:01]} 50. Bb3 {[%emt 0:00:01]} Rd8 {[%emt 0:00:02]} 51. Rf3 {[%emt 0:00:02]} Qg5 {[%emt 0:00:04]} 52. Qa5 {[%emt 0:00:01]} Rcc8 {[%emt 0:00:33]} 53. Qb4 {[%emt 0:00:03]} Rc1 {[%emt 0:00:05]} 54. Qxb7 {[%emt 0:00:03]} Nf4 {[%emt 0:00:07]} 55. R3f2 {[%emt 0:00:03]} Rxf1+ {[%emt 0:00:02]} 0-1